fUSD/lending_fUSD_20250517
["ID","MTS","AMOUNT","RATE_DAILY","PERIOD"]
[361305489,1747440001006,400.0,0.00042516,30]
[361305491,1747440030834,500.0,0.00042516,30]
[361305492,1747440052836,825.0636,0.00042516,120]
[361305493,1747440117603,5132.5226,0.00042516,120]
[361305497,1747440392375,21339.85842224,0.00042567,120]
[361305498,1747440425125,-152.14615553,0.00011957,2]
[361305500,1747440497476,450.0,0.0001,2]
[361305501,1747440532303,400.0,0.00042567,30]
[361305502,1747440549100,-42.22384447,0.00011957,2]
[361305503,1747440549122,-461.63,0.00013023,2]
[361305504,1747440549143,-372.23,0.00013699,2]
[361305505,1747440549165,-1000.0,0.00014812,2]
[361305506,1747440549185,-3955.31,0.00014834,2]
[361305507,1747440549206,-300.0,0.00014852,2]
[361305508,1747440549226,-13784.67,0.00014853,2]
[361305509,1747440549246,-183.6,0.00014873,2]
[361305510,1747440549267,-3626.31,0.00014894,2]
[361305511,1747440549290,-150.0,0.00014946,7]
[361305512,1747440549311,-2751.0,0.00015101,2]
[361305513,1747440549331,-631.96,0.00015179,2]
[361305514,1747440549350,-200.0,0.00015236,2]
[361305515,1747440549371,-1200.0,0.00015272,2]
[361305516,1747440549391,-6386.01315553,0.00015273,2]
[361305517,1747440563202,-262.42684447,0.00015273,2]
[361305518,1747440563225,-437.17698525,0.00015286,2]
[361305520,1747440584102,459.0,0.00042567,30]
[361305521,1747440617029,1000.0,0.00042567,30]
[361305536,1747440632006,-4778.3,0.00015114,2]
[361305537,1747440632061,-376.65962307,0.00015114,2]
[361305595,1747440637841,-2378.4294,0.00015114,2]
[361305596,1747440637852,-372.87803105,0.00015114,2]
[361305597,1747440638026,-3471.30320051,0.00015114,2]
[361305599,1747440638130,-12512.42974537,0.00015114,2]
[361305601,1747440638140,-275.45,0.00015188,2]
[361305603,1747440638150,-24.45301475,0.00015286,2]
[361305605,1747440638160,-837.37,0.00015315,2]
[361305607,1747440638170,-3743.21,0.00015357,2]
[361305608,1747440638180,-2240.4,0.00015396,2]
[361305610,1747440638190,-1036.2,0.00015564,2]
[361305612,1747440638200,-1200.0,0.00015577,2]
[361305615,1747440638210,-300.0,0.00015577,2]
[361305617,1747440638219,-250.0,0.00015578,2]
[361305618,1747440638229,-1500.0,0.00015578,2]
[361305620,1747440638239,-164.92,0.00015593,2]
[361305622,1747440638248,-1122.47,0.00015631,2]
[361305624,1747440638258,-440.55,0.00015675,2]
[361305626,1747440638268,-553.548,0.00015686,2]
[361305628,1747440638277,-300.0,0.00015686,2]
[361305630,1747440638286,-500.0,0.00015693,2]
[361305632,1747440638296,-589.02,0.000157,2]
[361305634,1747440638305,-336.4,0.00015778,2]
[361305636,1747440638315,-589.02,0.000158,2]
[361305638,1747440638324,-1157.59,0.00015878,2]
[361305640,1747440638333,-1157.59,0.00015878,2]
[361305642,1747440638342,-1157.59,0.00015878,2]
[361305644,1747440638353,-1157.59,0.00015878,2]
[361305646,1747440638362,-1157.59,0.00015878,2]
[361305648,1747440638373,-589.02,0.000159,2]
[361305650,1747440638382,-589.02,0.00016,2]
[361305652,1747440638392,-589.02,0.00016,2]
[361305654,1747440638401,-200.0,0.00016089,2]
[361305656,1747440638411,-196.51056823,0.00016338,2]
[361305658,1747440638420,-165.11640385,0.00016338,2]
[361305660,1747440638429,-4709.1714912,0.00016338,2]
[361305662,1747440638439,-289.05260652,0.00016338,2]
[361305664,1747440638448,-2910.50862719,0.00016338,2]
[361305666,1747440638458,-174.45399099,0.00016338,2]
[361305668,1747440638468,-864.05076374,0.0001636,2]
[361305670,1747440638477,-218.36542242,0.00016373,2]
[361305672,1747440638487,-208.57848544,0.00016428,2]
[361305673,1747440638497,-4709.17149114,0.00016429,2]
[361305675,1747440638506,-2910.50862719,0.00016429,2]
[361305676,1747440638516,-5173.39115696,0.00016437,2]
[361305677,1747440638526,-400.0,0.00016438,2]
[361305678,1747440638535,-349.77995513,0.00016438,2]
[361305679,1747440638545,-400.0,0.00016438,2]
[361305680,1747440638554,-400.0,0.00016438,2]
[361305681,1747440638563,-400.0,0.00016438,2]
[361305682,1747440638573,-400.0,0.00016438,2]
[361305683,1747440638583,-400.0,0.00016438,2]
[361305684,1747440638593,-400.0,0.00016438,2]
[361305685,1747440638603,-400.0,0.00016438,2]
[361305686,1747440638612,-402.55713806,0.00016438,2]
[361305687,1747440638622,-500.9532198,0.00016438,2]
[361305688,1747440638632,-400.0,0.00016438,2]
[361305689,1747440638641,-400.0,0.00016438,2]
[361305690,1747440638651,-162.18589707,0.00016438,2]
[361305691,1747440638660,-400.0,0.00016438,2]
[361305692,1747440638669,-400.0,0.00016438,2]
[361305693,1747440638679,-400.75785196,0.00016438,2]
[361305694,1747440638687,-400.0,0.00016438,2]
[361305695,1747440638696,-400.0,0.00016438,2]
[361305696,1747440638705,-400.0,0.00016438,2]
[361305697,1747440638714,-400.0,0.00016438,2]
[361305698,1747440638722,-400.0,0.00016438,2]
[361305699,1747440638731,-503.26306295,0.00016438,2]
[361305700,1747440638740,-400.0,0.00016438,2]
[361305701,1747440638749,-400.0,0.00016438,2]
[361305702,1747440638758,-400.0,0.00016438,2]
[361305703,1747440638767,-400.0,0.00016438,2]
[361305704,1747440638776,-400.0,0.00016438,2]
[361305705,1747440638786,-501.37282361,0.00016438,2]
[361305706,1747440638795,-400.0,0.00016438,2]
[361305707,1747440638804,-400.0,0.00016438,2]
[361305708,1747440638812,-400.0,0.00016438,2]
[361305709,1747440638822,-400.0,0.00016438,2]
[361305710,1747440638830,-400.0,0.00016438,2]
[361305711,1747440638839,-400.0,0.00016438,2]
[361305712,1747440638848,-400.0,0.00016438,2]
[361305713,1747440638857,-400.0,0.00016438,2]
[361305714,1747440638865,-400.0,0.00016438,2]
[361305715,1747440638875,-262.43531416,0.00016438,2]
[361305716,1747440638884,-400.0,0.00016438,2]
[361305717,1747440638892,-400.0,0.00016438,2]
[361305718,1747440638901,-400.0,0.00016438,2]
[361305719,1747440638910,-400.0,0.00016438,2]
[361305720,1747440638918,-400.0,0.00016438,2]
[361305721,1747440638926,-400.0,0.00016438,2]
[361305722,1747440638935,-448.79247865,0.00016438,2]
[361305723,1747440638945,-400.0,0.00016438,2]
[361305724,1747440638954,-400.0,0.00016438,2]
[361305725,1747440638963,-400.0,0.00016438,2]
[361305726,1747440638973,-402.08788544,0.00016438,2]
[361305727,1747440638983,-400.0,0.00016438,2]
[361305728,1747440638996,-400.0,0.00016438,2]
[361305729,1747440639005,-400.0,0.00016438,2]
[361305730,1747440639015,-404.10167434,0.00016438,2]
[361305731,1747440639027,-400.0,0.00016438,2]
[361305732,1747440639036,-400.0,0.00016438,2]
[361305733,1747440639046,-400.0,0.00016438,2]
[361305734,1747440639055,-400.0,0.00016438,2]
[361305735,1747440639064,-295.13120126,0.00016438,2]
[361305736,1747440639074,-469.83734832,0.00016438,2]
[361305737,1747440639083,-400.0,0.00016438,2]
[361305738,1747440639092,-200.25114411,0.00016438,2]
[361305749,1747440640704,-199.74885589,0.00016438,2]
[361305750,1747440640714,-400.0,0.00016438,2]
[361305751,1747440640723,-380.0,0.00016438,2]
[361305752,1747440640733,-330.5496179,0.00016438,2]
[361305753,1747440640751,-69.4503821,0.00016438,2]
[361305754,1747440640760,-840.20549834,0.00016438,2]
[361305755,1747440640826,-36.16450166,0.00016438,2]
[361305756,1747440640836,-400.0,0.00016438,2]
[361305757,1747440640845,-400.0,0.00016438,2]
[361305758,1747440640855,-99.28986045,0.00016438,2]
[361305759,1747440640869,-311.09013955,0.00016438,2]
[361305760,1747440640879,-318.14673097,0.00016438,2]
[361305761,1747440640897,-81.85326903,0.00016438,2]
[361305762,1747440640906,-400.0,0.00016438,2]
[361305763,1747440640916,-400.0,0.00016438,2]
[361305764,1747440640925,-400.0,0.00016438,2]
[361305765,1747440640934,-400.0,0.00016438,2]
[361305766,1747440640944,-13.65937379,0.00016438,2]
[361305767,1747440640965,-386.34062621,0.00016438,2]
[361305768,1747440640975,-400.0,0.00016438,2]
[361305769,1747440640984,-681.77,0.00016438,2]
[361305770,1747440640998,-400.0,0.00016438,2]
[361305771,1747440641007,-300.0,0.00016438,2]
[361305772,1747440641016,-151.0,0.00016438,2]
[361305773,1747440641027,-400.0,0.00016438,2]
[361305774,1747440641036,-400.0,0.00016438,2]
[361305775,1747440641047,-401.13983671,0.00016438,2]
[361305776,1747440641056,-151.0,0.00016438,2]
[361305777,1747440641067,-151.0,0.00016438,2]
[361305778,1747440641077,-400.0,0.00016438,2]
[361305779,1747440641087,-402.45793042,0.00016438,2]
[361305780,1747440641096,-400.0,0.00016438,2]
[361305781,1747440641106,-400.0,0.00016438,2]
[361305782,1747440641115,-400.0,0.00016438,2]
[361305783,1747440641125,-206.73276017,0.00016438,2]
[361305784,1747440641135,-541.59773264,0.00016438,2]
[361305785,1747440641145,-462.67,0.00016438,2]
[361305786,1747440641154,-400.0,0.00016438,2]
[361305787,1747440641163,-400.0,0.00016438,2]
[361305788,1747440641173,-566.44,0.00016438,2]
[361305789,1747440641183,-482.58,0.00016438,2]
[361305790,1747440641193,-400.0,0.00016438,2]
[361305791,1747440641202,-400.0,0.00016438,2]
[361305792,1747440641211,-571.26,0.00016438,2]
[361305793,1747440641221,-596.32,0.00016438,2]
[361305794,1747440641230,-400.0,0.00016438,2]
[361305795,1747440641239,-400.0,0.00016438,2]
[361305796,1747440641249,-400.0,0.00016438,2]
[361305797,1747440641258,-400.0,0.00016438,2]
[361305798,1747440641267,-400.0,0.00016438,2]
[361305799,1747440641276,-192.22643421,0.00016438,2]
[361305800,1747440641285,-824.42,0.00016438,2]
[361305801,1747440641294,-400.0,0.00016438,2]
[361305802,1747440641304,-400.0,0.00016438,2]
[361305803,1747440641313,-400.0,0.00016438,2]
[361305804,1747440641322,-151.0,0.00016438,2]
[361305805,1747440641331,-400.0,0.00016438,2]
[361305806,1747440641340,-495.82,0.00016438,2]
[361305807,1747440641349,-500.0,0.00016438,2]
[361305808,1747440641359,-500.0,0.00016438,2]
[361305809,1747440641367,-400.0,0.00016438,2]
[361305810,1747440641377,-650.97,0.00016438,2]
[361305811,1747440641386,-157.09438294,0.00016438,2]
[361305812,1747440641395,-400.0,0.00016438,2]
[361305813,1747440641404,-400.0,0.00016438,2]
[361305814,1747440641413,-400.0,0.00016438,2]
[361305815,1747440641422,-400.0,0.00016438,2]
[361305816,1747440641431,-795.11,0.00016438,2]
[361305817,1747440641440,-939.14,0.00016438,2]
[361305818,1747440641449,-853.67,0.00016438,2]
[361305819,1747440641458,-400.0,0.00016438,2]
[361305820,1747440641469,-321.72824176,0.00016438,2]
[361305821,1747440641487,-78.27175824,0.00016438,2]
[361305822,1747440641496,-400.0,0.00016438,2]
[361305823,1747440641505,-400.0,0.00016438,2]
[361305824,1747440641515,-400.0,0.00016438,2]
[361305825,1747440641524,-400.0,0.00016438,2]
[361305826,1747440641533,-400.0,0.00016438,2]
[361305827,1747440641542,-400.0,0.00016438,2]
[361305828,1747440641551,-438.34,0.00016438,2]
[361305829,1747440641560,-400.0,0.00016438,2]
[361305830,1747440641569,-400.0,0.00016438,2]
[361305831,1747440641578,-697.86,0.00016438,2]
[361305832,1747440641587,-400.0,0.00016438,2]
[361305833,1747440641596,-400.0,0.00016438,2]
[361305834,1747440641605,-301.32824176,0.00016438,2]
[361305835,1747440641634,-98.67175824,0.00016438,2]
[361305836,1747440641643,-400.0,0.00016438,2]
[361305837,1747440641652,-408.65,0.00016438,2]
[361305838,1747440641661,-400.0,0.00016438,2]
[361305839,1747440641672,-400.0,0.00016438,2]
[361305840,1747440641681,-140.45824176,0.00016438,2]
[361305862,1747440642943,-9376.46749257,0.00016438,2]
[361305865,1747440642955,-31078.53250743,0.00016438,2]
[361305867,1747440642967,-9262.684,0.00016438,2]
[361305875,1747440643162,-10111.76150018,0.00016438,2]
[361305888,1747440645749,-12292.68316476,0.00015741,2]
[361305889,1747440645819,-3010.22088828,0.00015741,2]
[361305890,1747440646144,-634.40000001,0.00015741,2]
[361305891,1747440646156,-1269.7494336,0.00015741,2]
[361305892,1747440646168,-7225.25115088,0.00015741,2]
[361305893,1747440646178,-75366.71250053,0.00016438,2]
[361305894,1747440646187,-259.54175824,0.00016438,2]
[361305895,1747440646197,-400.0,0.00016438,2]
[361305896,1747440646206,-400.0,0.00016438,2]
[361305897,1747440646216,-561.67,0.00016438,2]
[361305898,1747440646226,-865.82,0.00016438,2]
[361305899,1747440646235,-500.0,0.00016438,2]
[361305900,1747440646244,-287.18,0.00016438,2]
[361305901,1747440646254,-151.0,0.00016438,2]
[361305902,1747440646263,-151.0,0.00016438,2]
[361305904,1747440646274,-225.7208607,0.00016438,2]
[361305906,1747440646285,-400.0,0.00016438,2]
[361305907,1747440646294,-454.7,0.00016438,2]
[361305908,1747440646304,-937.47,0.00016438,2]
[361305909,1747440646314,-456.5083613,0.00016438,2]
[361305910,1747440646323,-162.984459,0.00016438,2]
[361305911,1747440646333,-400.0,0.00016438,2]
[361305912,1747440646342,-400.0,0.00016438,2]
[361305913,1747440646352,-400.0,0.00016438,2]
[361305914,1747440646361,-449.52806,0.00016438,2]
[361305915,1747440646371,-506.92,0.00016438,2]
[361305916,1747440646381,-400.0,0.00016438,2]
[361305917,1747440646391,-400.0,0.00016438,2]
[361305918,1747440646400,-449.52806,0.00016438,2]
[361305919,1747440646409,-400.0,0.00016438,2]
[361305920,1747440646419,-152.512617,0.00016438,2]
[361305921,1747440646429,-400.0,0.00016438,2]
[361305922,1747440646439,-847.72,0.00016438,2]
[361305923,1747440646450,-400.0,0.00016438,2]
[361305924,1747440646461,-647.2,0.00016438,2]
[361305925,1747440646471,-400.0,0.00016438,2]
[361305926,1747440646482,-1165.28,0.00016438,2]
[361305927,1747440646492,-155.8087156,0.00016438,2]
[361305928,1747440646502,-400.0,0.00016438,2]
[361305929,1747440646512,-400.0,0.00016438,2]
[361305930,1747440646521,-400.0,0.00016438,2]
[361305931,1747440646531,-323.00903589,0.00016438,2]
[361305932,1747440646540,-400.0,0.00016438,2]
[361305933,1747440646550,-400.0,0.00016438,2]
[361305934,1747440646560,-375.51882,0.00016438,2]
[361305935,1747440646570,-400.0,0.00016438,2]
[361305936,1747440646580,-400.0,0.00016438,2]
[361305937,1747440646590,-400.0,0.00016438,2]
[361305938,1747440646600,-170.47206463,0.00016438,2]
[361305939,1747440646610,-375.51882,0.00016438,2]
[361305940,1747440646620,-151.0,0.00016438,2]
[361305941,1747440646630,-151.0,0.00016438,2]
[361305942,1747440646639,-428.73,0.00016438,2]
[361305943,1747440646648,-406.6474191,0.00016438,2]
[361305944,1747440646658,-400.0,0.00016438,2]
[361305945,1747440646667,-400.0,0.00016438,2]
[361305946,1747440646677,-400.0,0.00016438,2]
[361305947,1747440646686,-400.0,0.00016438,2]
[361305948,1747440646695,-400.0,0.00016438,2]
[361305949,1747440646704,-401.8420495,0.00016438,2]
[361305950,1747440646714,-480.81,0.00016438,2]
[361305951,1747440646723,-203.77276396,0.00016438,2]
[361305952,1747440646732,-400.0,0.00016438,2]
[361305953,1747440646741,-400.0,0.00016438,2]
[361305954,1747440646751,-400.0,0.00016438,2]
[361305955,1747440646760,-400.0,0.00016438,2]
[361305956,1747440646770,-400.0,0.00016438,2]
[361305957,1747440646779,-400.0,0.00016438,2]
[361305958,1747440646789,-424.5111823,0.00016438,2]
[361305959,1747440646799,-400.0,0.00016438,2]
[361305960,1747440646809,-405.00312436,0.00016438,2]
[361305961,1747440646818,-400.0,0.00016438,2]
[361305962,1747440646828,-400.0,0.00016438,2]
[361305963,1747440646838,-649.68,0.00016438,2]
[361305964,1747440646847,-400.0,0.00016438,2]
[361305965,1747440646857,-400.0,0.00016438,2]
[361305966,1747440646867,-400.0,0.00016438,2]
[361305967,1747440646877,-151.0,0.00016438,2]
[361305968,1747440646886,-400.0,0.00016438,2]
[361305969,1747440646895,-400.0,0.00016438,2]
[361305970,1747440646904,-468.27,0.00016438,2]
[361305971,1747440646914,-400.0,0.00016438,2]
[361305972,1747440646923,-877.05,0.00016438,2]
[361305973,1747440646933,-400.0,0.00016438,2]
[361305974,1747440646942,-151.0,0.00016438,2]
[361305975,1747440646951,-400.0,0.00016438,2]
[361305976,1747440646961,-659.87,0.00016438,2]
[361305977,1747440646971,-400.0,0.00016438,2]
[361305978,1747440646981,-400.0,0.00016438,2]
[361305979,1747440646996,-381.67546432,0.00016438,2]
[361305980,1747440647006,-157.10663031,0.00016438,2]
[361305981,1747440647016,-413.18187418,0.00016438,2]
[361305982,1747440647026,-400.0,0.00016438,2]
[361305983,1747440647037,-400.0,0.00016438,2]
[361305984,1747440647047,-400.0,0.00016438,2]
[361305985,1747440647056,-464.16,0.00016438,2]
[361305986,1747440647066,-400.0,0.00016438,2]
[361305987,1747440647076,-400.0,0.00016438,2]
[361305988,1747440647086,-400.0,0.00016438,2]
[361305989,1747440647096,-400.0,0.00016438,2]
[361305990,1747440647106,-839.18,0.00016438,2]
[361305991,1747440647115,-400.0,0.00016438,2]
[361305992,1747440647125,-348.87511888,0.00016438,2]
[361305993,1747440647135,-400.0,0.00016438,2]
[361305994,1747440647145,-313.77710891,0.00016438,2]
[361305995,1747440647155,-400.0,0.00016438,2]
[361305996,1747440647164,-400.0,0.00016438,2]
[361305997,1747440647174,-1035.83,0.00016438,2]
[361305998,1747440647184,-400.0,0.00016438,2]
[361305999,1747440647194,-400.0,0.00016438,2]
[361306000,1747440647204,-400.0,0.00016438,2]
[361306001,1747440647213,-327.105031,0.00016438,2]
[361306002,1747440647223,-1028.93,0.00016438,2]
[361306003,1747440647232,-568.11,0.00016438,2]
[361306004,1747440647242,-357.04012463,0.00016438,2]
[361306005,1747440647252,-400.0,0.00016438,2]
[361306006,1747440647508,-400.0,0.00016438,2]
[361306007,1747440647530,-400.0,0.00016438,2]
[361306008,1747440647542,-400.0,0.00016438,2]
[361306009,1747440647552,-625.99,0.00016438,2]
[361306010,1747440647562,-400.0,0.00016438,2]
[361306011,1747440647571,-400.0,0.00016438,2]
[361306012,1747440647580,-400.0,0.00016438,2]
[361306013,1747440647590,-400.0,0.00016438,2]
[361306014,1747440647599,-400.0,0.00016438,2]
[361306015,1747440647609,-400.0,0.00016438,2]
[361306016,1747440647619,-400.0,0.00016438,2]
[361306017,1747440647628,-1659.94,0.00016438,2]
[361306018,1747440647638,-259.24433577,0.00016438,2]
[361306019,1747440647647,-400.0,0.00016438,2]
[361306020,1747440647657,-400.0,0.00016438,2]
[361306021,1747440647666,-400.0,0.00016438,2]
[361306022,1747440647675,-400.0,0.00016438,2]
[361306023,1747440647685,-400.0,0.00016438,2]
[361306024,1747440647694,-400.0,0.00016438,2]
[361306025,1747440647703,-859.76,0.00016438,2]
[361306026,1747440647713,-151.55344983,0.00016438,2]
[361306027,1747440647722,-400.0,0.00016438,2]
[361306028,1747440647731,-1574.2,0.00016438,2]
[361306029,1747440647741,-400.0,0.00016438,2]
[361306030,1747440647750,-400.0,0.00016438,2]
[361306031,1747440647759,-400.0,0.00016438,2]
[361306032,1747440647768,-400.0,0.00016438,2]
[361306033,1747440647777,-400.0,0.00016438,2]
[361306034,1747440647789,-400.0,0.00016438,2]
[361306035,1747440647798,-400.0,0.00016438,2]
[361306036,1747440647807,-400.0,0.00016438,2]
[361306037,1747440647816,-458.27377844,0.00016438,2]
[361306038,1747440647825,-400.0,0.00016438,2]
[361306039,1747440647834,-950.12,0.00016438,2]
[361306040,1747440647843,-400.0,0.00016438,2]
[361306041,1747440647852,-400.0,0.00016438,2]
[361306042,1747440647861,-400.0,0.00016438,2]
[361306043,1747440647871,-400.0,0.00016438,2]
[361306044,1747440647880,-661.09,0.00016438,2]
[361306045,1747440647890,-400.0,0.00016438,2]
[361306046,1747440647898,-477.21,0.00016438,2]
[361306047,1747440647907,-400.0,0.00016438,2]
[361306048,1747440647916,-400.0,0.00016438,2]
[361306049,1747440647926,-400.0,0.00016438,2]
[361306050,1747440647936,-894.43,0.00016438,2]
[361306051,1747440647945,-400.0,0.00016438,2]
[361306052,1747440647955,-400.0,0.00016438,2]
[361306053,1747440647964,-523.27,0.00016438,2]
[361306054,1747440647973,-400.0,0.00016438,2]
[361306055,1747440647982,-400.0,0.00016438,2]
[361306056,1747440647994,-400.0,0.00016438,2]
[361306057,1747440648004,-400.0,0.00016438,2]
[361306058,1747440648014,-400.0,0.00016438,2]
[361306059,1747440648023,-1551.22,0.00016438,2]
[361306060,1747440648033,-1339.82,0.00016438,2]
[361306061,1747440648043,-400.0,0.00016438,2]
[361306062,1747440648053,-517.21,0.00016438,2]
[361306063,1747440648062,-574.36,0.00016438,2]
[361306064,1747440648071,-400.0,0.00016438,2]
[361306065,1747440648081,-400.0,0.00016438,2]
[361306066,1747440648090,-400.0,0.00016438,2]
[361306067,1747440648100,-427.53,0.00016438,2]
[361306068,1747440648109,-400.0,0.00016438,2]
[361306069,1747440648118,-400.0,0.00016438,2]
[361306070,1747440648127,-400.0,0.00016438,2]
[361306071,1747440648137,-582.09,0.00016438,2]
[361306072,1747440648147,-400.0,0.00016438,2]
[361306073,1747440648157,-504.67,0.00016438,2]
[361306074,1747440648166,-470.03,0.00016438,2]
[361306075,1747440648176,-400.0,0.00016438,2]
[361306076,1747440648185,-294.98781008,0.00016438,2]
[361306077,1747440648194,-400.0,0.00016438,2]
[361306078,1747440648204,-400.0,0.00016438,2]
[361306079,1747440648213,-400.0,0.00016438,2]
[361306080,1747440648222,-400.0,0.00016438,2]
[361306081,1747440648232,-1199.46,0.00016438,2]
[361306082,1747440648241,-400.0,0.00016438,2]
[361306083,1747440648251,-400.0,0.00016438,2]
[361306084,1747440648262,-400.0,0.00016438,2]
[361306085,1747440648272,-799.51,0.00016438,2]
[361306086,1747440648281,-400.0,0.00016438,2]
[361306087,1747440648291,-400.0,0.00016438,2]
[361306088,1747440648302,-400.0,0.00016438,2]
[361306089,1747440648311,-400.0,0.00016438,2]
[361306090,1747440648321,-400.0,0.00016438,2]
[361306091,1747440648330,-980.07,0.00016438,2]
[361306092,1747440648339,-472.03830285,0.00016438,2]
[361306093,1747440648349,-485.41,0.00016438,2]
[361306094,1747440648358,-400.0,0.00016438,2]
[361306095,1747440648369,-400.0,0.00016438,2]
[361306096,1747440648378,-400.0,0.00016438,2]
[361306097,1747440648387,-400.0,0.00016438,2]
[361306098,1747440648397,-1050.35,0.00016438,2]
[361306099,1747440648406,-400.0,0.00016438,2]
[361306100,1747440648415,-400.0,0.00016438,2]
[361306101,1747440648425,-400.0,0.00016438,2]
[361306102,1747440648435,-400.0,0.00016438,2]
[361306103,1747440648445,-400.0,0.00016438,2]
[361306104,1747440648455,-563.88,0.00016438,2]
[361306105,1747440648464,-527.75,0.00016438,2]
[361306106,1747440648474,-502.22,0.00016438,2]
[361306107,1747440648483,-400.0,0.00016438,2]
[361306108,1747440648493,-400.0,0.00016438,2]
[361306109,1747440648503,-400.0,0.00016438,2]
[361306110,1747440648512,-7778.15658772,0.00016438,2]
[361306111,1747440648522,-151.0,0.00016438,2]
[361306112,1747440648531,-400.0,0.00016438,2]
[361306113,1747440648541,-400.0,0.00016438,2]
[361306114,1747440648551,-1114.62,0.00016438,2]
[361306115,1747440648560,-400.0,0.00016438,2]
[361306116,1747440648570,-400.0,0.00016438,2]
[361306117,1747440648580,-400.0,0.00016438,2]
[361306118,1747440648590,-400.0,0.00016438,2]
[361306119,1747440648599,-177.62029189,0.00016438,2]
[361306120,1747440648608,-400.0,0.00016438,2]
[361306121,1747440648618,-400.0,0.00016438,2]
[361306122,1747440648627,-400.0,0.00016438,2]
[361306123,1747440648637,-648.1,0.00016438,2]
[361306124,1747440648647,-901.72,0.00016438,2]
[361306125,1747440648656,-400.0,0.00016438,2]
[361306126,1747440648665,-400.0,0.00016438,2]
[361306127,1747440648675,-500.0,0.00016438,2]
[361306128,1747440648684,-400.0,0.00016438,2]
[361306129,1747440648693,-416.28,0.00016438,2]
[361306130,1747440648702,-774.13,0.00016438,2]
[361306131,1747440648713,-400.0,0.00016438,2]
[361306132,1747440648722,-435.23,0.00016438,2]
[361306133,1747440648732,-151.0,0.00016438,2]
[361306134,1747440648741,-151.0,0.00016438,2]
[361306135,1747440648751,-400.0,0.00016438,2]
[361306136,1747440648760,-400.0,0.00016438,2]
[361306137,1747440648770,-151.0,0.00016438,2]
[361306138,1747440648779,-777.16,0.00016438,2]
[361306139,1747440648789,-400.0,0.00016438,2]
[361306140,1747440648799,-151.0,0.00016438,2]
[361306141,1747440648809,-505.77845193,0.00016438,2]
[361306142,1747440648818,-466.75,0.00016438,2]
[361306143,1747440648827,-400.0,0.00016438,2]
[361306144,1747440648837,-1946.0,0.00016438,2]
[361306145,1747440648847,-825.19,0.00016438,2]
[361306146,1747440648857,-400.0,0.00016438,2]
[361306147,1747440648867,-400.0,0.00016438,2]
[361306148,1747440648877,-400.0,0.00016438,2]
[361306149,1747440648887,-151.0,0.00016438,2]
[361306150,1747440648897,-937.24,0.00016438,2]
[361306151,1747440648907,-400.0,0.00016438,2]
[361306152,1747440648918,-151.0,0.00016438,2]
[361306153,1747440648928,-985.77,0.00016438,2]
[361306154,1747440648938,-400.0,0.00016438,2]
[361306155,1747440648949,-467.91,0.00016438,2]
[361306156,1747440648959,-401.62588453,0.00016438,2]
[361306157,1747440648969,-400.0,0.00016438,2]
[361306158,1747440648979,-400.0,0.00016438,2]